[Event "Gibraltar Amateurs B 2019"]
[Site "Caleta"]
[Date "2019.01.26"]
[Round "1"]
[White "Krause, Marianne"]
[Black "Hermes, Geoff R"]
[Result "0-1"]
[ECO "A53"]
[WhiteElo "1637"]
[BlackElo "1860"]
[Annotator "NA"]
[PlyCount "56"]
[EventDate "2019.01.18"]
[EventType "swiss"]
[EventCountry "GGB"]
[SourceTitle "playchess.com"]
[Source "ChessBase"]
[SourceQuality "1"]
[TimeControl "6600+10"]

1. d4 {[%emt 0:00:00]} d6 {[%emt 0:00:00]} 2. Nf3 {[%emt 0:00:00]} Bg4 {[%emt 0:00:05]} 3. e3 {[%emt 0:00:12]} Nf6 {[%emt 0:01:08]} 4. Be2 {[%emt 0:00:30]} Nbd7 {[%emt 0:00:39]} 5. c4 {[%emt 0:01:28]} e5 {[%emt 0:00:33] A53: Old Indian Defence without Nf3} 6. Nbd2 {[%emt 0:04:50]} (6. Nc3 c6 7. O-O Be7 8. h3 Bh5 9. b3 O-O 10. Bb2 e4 11. Nh2 Bxe2 12. Qxe2 d5 13. Rac1 a6 14. Ng4 Re8 15. Rc2 Bd6 16. Nxf6+ {½-½ (16) Mamedyarov,S (2817)-Petrosian,T (2598) St Petersburg 2018}) 6... Be7 {[%emt 0:01:48]} 7. b3 {[%emt 0:01:13]} c6 {[%emt 0:02:24]} 8. Bb2 {[%emt 0:00:43]} e4 {[%emt 0:04:32]} 9. Ng5 {[%emt 0:02:38]} Bxe2 {[%emt 0:00:39]} 10. Qxe2 {[%emt 0:00:14]} d5 {[%emt 0:00:11]} 11. cxd5 {[%emt 0:01:15]} cxd5 {[%emt 0:00:14]} 12. O-O $146 {[%emt 0:01:04]} ({Predecessor:} 12. Qb5 Qb8 {½-½ (39) Moon,B-Ludwig,J (2140) Orlando 2014}) 12... O-O {[%emt 0:02:01]} 13. Nh3 {[%emt 0:07:20]} Rc8 {[%emt 0:02:45]} 14. Rfc1 {[%emt 0:02:08]} Qa5 {[%emt 0:02:33]} 15. a3 {[%emt 0:04:22]} Rc6 {[%emt 0:18:14]} 16. Qd1 {[%emt 0:13:06]} Rfc8 {[%emt 0:04:08]} 17. Rxc6 {[%emt 0:02:08]} Rxc6 {[%emt 0:01:50]} 18. Rc1 {[%emt 0:01:29]} Qa6 {[%emt 0:08:37]} 19. Rxc6 {[%emt 0:01:40]} bxc6 {[%emt 0:01:50]} 20. a4 {[%emt 0:06:16]} Bb4 {[%emt 0:02:22]} 21. Nf4 {[%emt 0:02:53]} g5 {[%emt 0:05:01]} 22. Nh3 $2 {[%emt 0:02:34]} (22. Ne2 $17) 22... Qd3 $19 {[%emt 0:00:28]} 23. Bc1 {[%emt 0:01:31]} h6 {[%emt 0:02:38]} 24. g3 {[%emt 0:06:07]} Kg7 {[%emt 0:05:32]} 25. Kg2 {[%emt 0:01:50]} c5 {[%emt 0:02:12]} 26. Qf1 {[%emt 0:06:50]} Qc2 {[%emt 0:00:50]} 27. Qe2 {[%emt 0:05:30]} Qxc1 {[%emt 0:00:40]} 28. Qe1 {[%emt 0:00:35]} Qc2 {[%emt 0:00:10]} 0-1

[Event "Gibraltar Amateurs B 2019"]
[Site "Caleta"]
[Date "2019.01.26"]
[Round "1"]
[White "White, Gary"]
[Black "Marcos Herrero, Francisco"]
[Result "1/2-1/2"]
[ECO "A01"]
[WhiteElo "1623"]
[BlackElo "1855"]
[Annotator "NA"]
[PlyCount "111"]
[EventDate "2019.01.18"]
[EventType "swiss"]
[EventCountry "GGB"]
[SourceTitle "playchess.com"]
[Source "ChessBase"]
[SourceQuality "1"]
[TimeControl "6600+10"]

1. b3 {[%emt 0:00:00]} e5 {[%emt 0:03:13]} 2. Bb2 {[%emt 0:00:04]} Nc6 {[%emt 0:00:06]} 3. e3 {[%emt 0:00:17]} Nf6 {[%emt 0:00:13]} 4. Bb5 {[%emt 0:01:10]} Bd6 {[%emt 0:02:52]} 5. Nf3 {[%emt 0:03:24] A01: Nimzowitsch-Larsen Opening} (5. Na3 Na5 6. Be2 a6 7. c4 O-O 8. Nb1 Re8 9. Nc3 Nc6 10. d3 Bf8 11. Nf3 d5 12. cxd5 Nxd5 13. O-O Nxc3 14. Bxc3 {1-0 (66) Karjakin,S (2753)-Riazantsev,A (2649) St Petersburg 2018}) 5... Qe7 {[%emt 0:00:17]} (5... e4 $5 {[%cal Re4f3]} 6. Nd4 O-O $15) 6. O-O {[%emt 0:01:19]} a6 {[%emt 0:00:53]} 7. Bxc6 $146 {[%emt 0:03:12]} ({Predecessor:} 7. Be2 O-O 8. c4 Re8 9. Nc3 Ba3 10. Bxa3 Qxa3 11. d4 e4 12. Nd2 Qe7 {1-0 (27) Gardner,R (2166)-Arruebarrena,R (2232) Edmonton 2017}) 7... dxc6 {[%emt 0:00:07]} 8. h3 {[%emt 0:02:06]} e4 {[%emt 0:01:41]} 9. Nh2 {[%emt 0:03:16]} Bf5 {[%emt 0:01:32]} 10. f4 {[%emt 0:06:41]} O-O-O {[%emt 0:01:53]} 11. Nc3 {[%emt 0:05:23]} h5 {[%emt 0:01:06]} 12. Ne2 {[%emt 0:05:49]} h4 {[%emt 0:02:03]} 13. Kh1 {[%emt 0:05:43]} Nh5 {[%emt 0:03:52]} 14. Qe1 {[%emt 0:01:51]} Rh6 {[%emt 0:04:31]} 15. Nd4 {[%emt 0:02:36]} Ng3+ {[%emt 0:02:32]} 16. Kg1 {[%emt 0:00:01]} g6 {[%emt 0:02:22]} 17. Rf2 {[%emt 0:00:29]} (17. Nxf5 $17 {only move.} gxf5 18. Rf2) 17... c5 {[%emt 0:01:16]} 18. Nxf5 {[%emt 0:00:52]} gxf5 {[%emt 0:00:23]} 19. d3 {[%emt 0:01:45]} (19. Rd1 $17) 19... Rg8 {[%emt 0:01:24]} 20. Qd2 {[%emt 0:02:18]} Rhg6 {[%emt 0:02:20]} 21. Re1 {[%emt 0:04:29]} Qd8 {[%emt 0:08:11]} 22. Qd1 {[%emt 0:04:10]} Be7 {[%emt 0:01:24]} 23. Rd2 {[%emt 0:06:19]} Rd6 {[%emt 0:00:43]} 24. Nf1 {[%emt 0:03:28]} Bf6 $11 {[%emt 0:02:43]} 25. Be5 {[%emt 0:00:57]} Rd7 {[%emt 0:08:30]} 26. Nxg3 {[%emt 0:00:17]} hxg3 {[%emt 0:03:07]} 27. Qh5 {[%emt 0:00:49]} Bxe5 {[%emt 0:01:27]} 28. fxe5 {[%emt 0:00:56]} Rg5 {[%emt 0:00:11]} 29. Qe2 {[%emt 0:06:22]} Qe7 {[%emt 0:01:28]} 30. d4 {[%emt 0:01:13]} Rg8 {[%emt 0:04:47]} 31. Rf1 {[%emt 0:01:09]} Qe6 {[%emt 0:00:40]} 32. Qh5 {[%emt 0:00:56]} cxd4 {[%emt 0:04:37]} 33. exd4 {[%emt 0:04:18]} e3 {[%emt 0:03:06]} 34. Rd3 {[%emt 0:03:04]} Rgd8 {[%emt 0:05:16]} 35. Rxe3 {[%emt 0:04:56]} Rxd4 {[%emt 0:00:16]} 36. Qxf5 {[%emt 0:00:59]} Qxf5 {[%emt 0:01:07]} 37. Rxf5 {[%emt 0:00:02]} Rd1+ {[%emt 0:00:29]} 38. Rf1 {[%emt 0:00:05]} R1d2 {[%emt 0:03:38]} 39. Rxf7 {[%emt 0:06:42]} Rg8 {[%emt 0:03:21]} 40. e6 {[%emt 0:01:53]} Kd8 {[%emt 0:00:26]} 41. Rd3+ {[%emt 0:01:58]} Rxd3 {[%emt 0:00:07]} 42. cxd3 {[%emt 0:00:04]} Rg6 {[%emt 0:00:12]} 43. e7+ {[%emt 0:03:51]} Ke8 {[%emt 0:00:14]} 44. Rf3 {[%emt 0:01:32]} Kxe7 {[%emt 0:00:09]} 45. Re3+ {[%emt 0:00:19]} Kd6 {[%emt 0:00:08]} 46. Kf1 {[%emt 0:00:02]} Kc5 {[%emt 0:01:07]} 47. Ke2 {[%emt 0:00:03]} Kb4 {[%emt 0:00:23]} 48. Re7 {[%emt 0:01:16]} Rf6 {[%emt 0:01:57]} 49. Rxc7 {[%emt 0:00:48]} Rf2+ {[%emt 0:00:20]} 50. Ke3 {[%emt 0:00:09]} b5 {[%emt 0:00:03]} 51. Rg7 {[%emt 0:00:58]} Rxg2 {[%emt 0:00:12]} 52. Kf3 {[%emt 0:00:02]} Rxa2 {[%emt 0:00:08]} 53. h4 {[%emt 0:00:40]} Rd2 {[%emt 0:03:38]} 54. Rxg3 {[%emt 0:02:27]} Rxd3+ {[%emt 0:00:46]} 55. Kf4 {[%emt 0:00:18]} Rd5 {[%emt 0:02:12]} 56. Ke4 {[%emt 0:00:46]} 1/2-1/2

[Event "Gibraltar Amateurs B 2019"]
[Site "Caleta"]
[Date "2019.01.27"]
[Round "2"]
[White "Cernuda Orejas, Victor Manuel"]
[Black "Anjali R. Sagar"]
[Result "1-0"]
[ECO "D00"]
[WhiteElo "1893"]
[BlackElo "1787"]
[Annotator "NA"]
[PlyCount "82"]
[EventDate "2019.01.18"]
[EventType "swiss"]
[EventCountry "GGB"]
[SourceTitle "playchess.com"]
[Source "ChessBase"]
[SourceQuality "1"]
[TimeControl "6600+10"]

1. c3 {[%emt 0:00:00]} Nf6 {[%emt 0:00:00]} 2. d4 {[%emt 0:00:10]} d5 {[%emt 0:00:12]} 3. Bg5 {[%emt 0:00:09]} Ne4 {[%emt 0:00:27]} 4. Be3 {[%emt 0:00:09] D00: 1 d4 d5: Unusual lines} (4. Bf4 c5 5. e3 Nc6 6. Bd3 g5 7. Bg3 h5 8. Bxe4 dxe4 9. h4 g4 10. d5 Na5 11. Qa4+ Bd7 12. Qxe4 Qb6 13. b3 {1-0 (51) Al Sayed,M (2484)-Lobanov,S (2526) St Petersburg 2018}) 4... Bf5 {[%emt 0:00:21]} 5. Nd2 {[%emt 0:00:12]} e6 {[%emt 0:00:31]} 6. Nxe4 {[%emt 0:02:43]} Bxe4 {[%emt 0:00:19]} 7. h4 $146 {[%emt 0:01:24]} ({Predecessor:} 7. Qa4+ Nd7 8. f3 {1-0 (8) Gradisar,M (1764)-Bajda,R (2036) ICCF email 2006}) 7... h6 {[%emt 0:02:32]} 8. Qb3 {[%emt 0:01:26]} b6 {[%emt 0:02:15]} 9. Nf3 {[%emt 0:00:17]} Nd7 {[%emt 0:00:43]} 10. Ne5 {[%emt 0:00:36]} (10. Nd2 $11) 10... Nxe5 {[%emt 0:02:33]} 11. dxe5 {[%emt 0:00:07]} c5 {[%emt 0:00:46]} 12. Qa4+ {[%emt 0:00:23]} Qd7 {[%emt 0:00:54]} 13. Qxd7+ {[%emt 0:00:06]} Kxd7 {[%emt 0:00:04]} 14. f3 {[%emt 0:00:56]} Bh7 {[%emt 0:00:58]} 15. Bf2 {[%emt 0:00:49]} Be7 {[%emt 0:02:26]} 16. O-O-O {[%emt 0:00:16]} Rhd8 {[%emt 0:02:45]} 17. e4 {[%emt 0:01:08]} Kc7 {[%emt 0:06:16]} 18. exd5 {[%emt 0:00:22]} Rxd5 {[%emt 0:01:12]} 19. Rxd5 {[%emt 0:00:19]} exd5 {[%emt 0:00:16]} 20. Kd2 {[%emt 0:00:21]} Rd8 {[%emt 0:02:50]} 21. g4 {[%emt 0:01:13]} d4 {[%emt 0:05:36] [#]} 22. cxd4 $1 {[%emt 0:00:41]} cxd4 {[%emt 0:00:21]} 23. Bd3 {[%emt 0:00:21]} Bxd3 {[%emt 0:06:51]} 24. Kxd3 {[%emt 0:00:06]} Rd5 {[%emt 0:01:55]} 25. f4 {[%emt 0:00:35]} f6 {[%emt 0:05:31]} 26. Ke4 {[%emt 0:00:26]} Ra5 {[%emt 0:02:21]} 27. Bxd4 {[%emt 0:00:40]} Rxa2 {[%emt 0:02:47]} 28. exf6 {[%emt 0:00:53]} Bxf6 {[%emt 0:01:29]} 29. Bxf6 {[%emt 0:01:06]} gxf6 {[%emt 0:00:04]} 30. Kf5 {[%emt 0:01:54]} Rxb2 {[%emt 0:00:38]} 31. Kxf6 {[%emt 0:00:04]} Rb4 {[%emt 0:01:43]} 32. Ke5 {[%emt 0:00:08]} Kd7 {[%emt 0:02:18]} 33. g5 {[%emt 0:00:15]} Ke7 {[%emt 0:01:27]} 34. Kf5 {[%emt 0:01:01]} Kf7 {[%emt 0:01:23]} 35. g6+ {[%emt 0:00:22]} Kg7 {[%emt 0:00:33]} 36. h5 {[%emt 0:00:04]} Rb5+ {[%emt 0:00:18]} 37. Kg4 {[%emt 0:00:46]} Rc5 {[%emt 0:01:05]} 38. Rd1 {[%emt 0:00:06]} Rc7 {[%emt 0:00:17]} 39. Rd8 {[%emt 0:00:11]} Rb7 {[%emt 0:01:27]} 40. f5 {[%emt 0:01:21]} b5 {[%emt 0:01:00]} 41. Rd6 {[%emt 0:00:06]} Re7 {[%emt 0:02:33]} 1-0

[Event "Gibraltar Amateurs B 2019"]
[Site "Caleta"]
[Date "2019.01.27"]
[Round "2"]
[White "Valladolid Martin, Fco. Jose"]
[Black "Lopez Valcarcel, Juan"]
[Result "1/2-1/2"]
[ECO "B41"]
[WhiteElo "1878"]
[BlackElo "1761"]
[Annotator "NA"]
[PlyCount "81"]
[EventDate "2019.01.18"]
[EventType "swiss"]
[EventCountry "GGB"]
[SourceTitle "playchess.com"]
[Source "ChessBase"]
[SourceQuality "1"]
[TimeControl "6600+10"]

1. e4 {[%emt 0:00:00]} c5 {[%emt 0:00:19]} 2. Nf3 {[%emt 0:00:07]} d6 {[%emt 0:00:14]} 3. d4 {[%emt 0:00:26]} cxd4 {[%emt 0:00:11]} 4. Nxd4 {[%emt 0:00:06]} Nf6 {[%emt 0:00:13]} 5. f3 {[%emt 0:01:37]} a6 {[%emt 0:01:12]} 6. c4 {[%emt 0:00:15]} e6 {[%emt 0:05:08]} 7. Nc3 {[%emt 0:01:11]} Be7 {[%emt 0:00:53]} 8. Be3 {[%emt 0:00:21]} Nbd7 {[%emt 0:07:53]} 9. Be2 {[%emt 0:00:21]} Qc7 {[%emt 0:00:30]} 10. O-O {[%emt 0:00:26]} O-O {[%emt 0:03:00] LiveBook: 31 Games} 11. Rc1 {[%emt 0:02:02] B41: Sicilian: Kan Variation: 5 c4} (11. Qd2 b6 12. Rfc1 Bb7 13. a4 Rfc8 14. a5 Qb8 15. axb6 Bd8 16. Na4 Bc6 17. Nxc6 Rxc6 18. e5 Nxe5 19. b4 d5 20. c5 Qb7 21. Nb2 Rcc8 22. Ra4 h5 23. Rca1 h4 24. h3 {1-0 (24) Kovalenko,I (2672)-Stocko,J (2334) Budapest 2017}) 11... Qa5 $1 $146 {[%emt 0:03:36]} ({Predecessor:} 11... b6 12. Qd2 Bb7 13. Rfd1 Rfe8 14. Bf1 Rac8 15. Qf2 Qb8 16. a3 Bd8 17. Nc2 Bc7 18. g3 Ne5 19. Be2 Bd8 20. Bxb6 Nxc4 21. Ba7 Qc7 22. Bxc4 Qxc4 23. Rxd6 Ba5 24. Ne3 {1-0 (56) Orlov,G (2529)-Valencia,B (2378) Richmond 2017}) 12. Nb3 {[%emt 0:04:11]} ({White should try} 12. Qe1 $16) 12... Qd8 $1 {[%emt 0:06:27]} 13. Nd4 {[%emt 0:03:53]} Qa5 {[%emt 0:04:10]} 14. Nb3 {[%emt 0:03:19]} Qd8 {[%emt 0:00:11]} 15. Qd2 {[%emt 0:00:34]} b6 {[%emt 0:05:24]} 16. Rfd1 {[%emt 0:01:16]} Bb7 {[%emt 0:01:05]} 17. Bf1 {[%emt 0:05:28]} Qc7 {[%emt 0:02:59]} 18. Qf2 {[%emt 0:00:39]} Rab8 {[%emt 0:03:22]} 19. Rc2 {[%emt 0:02:48]} Kh8 {[%emt 0:06:03]} 20. Nd4 {[%emt 0:02:13]} Rfc8 {[%emt 0:05:19]} 21. Rcd2 {[%emt 0:04:06]} Rd8 {[%emt 0:04:11]} 22. g4 {[%emt 0:01:04]} d5 {[%emt 0:12:11]} (22... Ne5 $16) 23. g5 {[%emt 0:03:05]} e5 {[%emt 0:11:49]} 24. gxf6 {[%emt 0:04:07]} Bxf6 {[%emt 0:00:09]} 25. Ndb5 {[%emt 0:09:37]} axb5 {[%emt 0:01:21]} 26. Nxb5 {[%emt 0:00:06]} Qc8 {[%emt 0:04:29]} 27. Nd6 {[%emt 0:00:09]} Qc7 {[%emt 0:00:15]} 28. Nxf7+ {[%emt 0:00:07] Double Attack} Kg8 {[%emt 0:00:11]} 29. Nxd8 {[%emt 0:00:08]} d4 {[%emt 0:00:05]} 30. Ne6 {[%emt 0:00:16]} Qc6 {[%emt 0:00:53]} 31. Nxd4 {[%emt 0:00:22]} exd4 {[%emt 0:00:44]} 32. Bxd4 {[%emt 0:00:14]} h5 {[%emt 0:05:11]} 33. Bxf6 {[%emt 0:00:24]} Nxf6 {[%emt 0:00:08]} 34. Rd8+ {[%emt 0:00:11]} Rxd8 {[%emt 0:00:15]} 35. Rxd8+ {[%emt 0:00:04]} Kh7 {[%emt 0:00:08]} 36. Qd4 {[%emt 0:01:39]} Bc8 {[%emt 0:01:51]} 37. e5 {[%emt 0:01:03]} Ng8 {[%emt 0:00:17]} 38. Bd3+ {[%emt 0:00:18]} Kh8 {[%emt 0:02:02]} 39. Qd5 {[%emt 0:00:16]} Qe6 {[%emt 0:01:08]} 40. Qxe6 {[%emt 0:00:33]} Bxe6 $18 {[%emt 0:00:08]} 41. Rd6 {[%emt 0:00:07]} 1/2-1/2

[Event "Gibraltar Amateurs B 2019"]
[Site "Caleta"]
[Date "2019.01.27"]
[Round "2"]
[White "Leimeister, Winfried"]
[Black "Oueld El Hachemi, Abdelhaq"]
[Result "1/2-1/2"]
[ECO "C30"]
[WhiteElo "1870"]
[BlackElo "1747"]
[Annotator "NA"]
[PlyCount "113"]
[EventDate "2019.01.18"]
[EventType "swiss"]
[EventCountry "GGB"]
[SourceTitle "playchess.com"]
[Source "ChessBase"]
[SourceQuality "1"]
[TimeControl "6600+10"]

1. e4 {[%emt 0:02:40]} e5 {[%emt 0:00:30]} 2. f4 {[%emt 0:00:15]} d6 {[%emt 0:00:16]} 3. Nf3 {[%emt 0:00:09]} Nc6 {[%emt 0:00:45]} 4. Bc4 {[%emt 0:00:11]} h6 {[%emt 0:00:33]} (4... exf4 $11 5. d4 g5) 5. d3 {[%emt 0:00:21] C30: King's Gambit Declined} Be7 {[%emt 0:00:24]} 6. O-O {[%emt 0:00:13]} Nf6 {[%emt 0:00:07]} 7. c3 {[%emt 0:02:32]} O-O {[%emt 0:01:04]} 8. b4 $146 {[%emt 0:06:06]} ({Predecessor:} 8. Qe2 Bg4 9. b4 a6 10. Na3 Nh5 11. f5 Bg5 {1-0 (43) Janko,R (1835)-Loknar,K (1709) Ljubljana 2014}) 8... a6 {[%emt 0:01:37]} 9. a4 {[%emt 0:10:50]} exf4 {[%emt 0:00:07]} 10. Bxf4 {[%emt 0:05:13]} Be6 {[%emt 0:00:20]} 11. Ba2 {[%emt 0:07:59]} Bxa2 {[%emt 0:00:06]} 12. Rxa2 {[%emt 0:00:05]} Qd7 {[%emt 0:00:44]} 13. Re2 {[%emt 0:06:05]} Qg4 {[%emt 0:03:01]} 14. Be3 {[%emt 0:05:35]} Qh5 {[%emt 0:00:50]} 15. h3 {[%emt 0:09:53]} b5 {[%emt 0:01:38]} 16. a5 {[%emt 0:02:49]} Nd7 {[%emt 0:02:56]} 17. d4 {[%emt 0:18:10]} Bf6 {[%emt 0:06:03]} 18. Ne1 {[%emt 0:05:32]} Rfe8 {[%emt 0:00:36]} 19. Nd2 {[%emt 0:00:15]} Bg5 {[%emt 0:02:08]} 20. Bxg5 {[%emt 0:02:56]} hxg5 {[%emt 0:01:32]} 21. Nd3 {[%emt 0:03:12]} Re7 {[%emt 0:01:41]} 22. Qe1 {[%emt 0:01:52]} Rae8 {[%emt 0:00:25]} 23. Rf3 {[%emt 0:03:35]} Nf6 {[%emt 0:00:38]} 24. Rfe3 {[%emt 0:01:44]} Qg6 {[%emt 0:01:41]} 25. g4 {[%emt 0:01:34]} Nd7 {[%emt 0:05:37]} 26. Qf2 {[%emt 0:01:32]} f6 {[%emt 0:02:35]} 27. Qf5 {[%emt 0:00:35]} Qxf5 {[%emt 0:00:04]} 28. gxf5 {[%emt 0:00:02]} Kf7 {[%emt 0:00:44]} 29. Nf2 {[%emt 0:01:17]} d5 {[%emt 0:03:19]} (29... Rh8 $11) 30. Ng4 {[%emt 0:00:05]} ({White should play} 30. h4 $16) 30... dxe4 {[%emt 0:01:04]} 31. Rxe4 {[%emt 0:00:02]} Rxe4 {[%emt 0:01:47]} 32. Rxe4 {[%emt 0:00:34]} Rxe4 {[%emt 0:00:33]} 33. Nxe4 {[%emt 0:00:03]} Ne7 {[%emt 0:00:26]} 34. Ne3 {[%emt 0:00:07]} g6 {[%emt 0:01:42]} 35. fxg6+ {[%emt 0:02:09]} Kxg6 {[%emt 0:00:03]} 36. d5 {[%emt 0:05:14]} f5 {[%emt 0:01:50]} 37. Nc5 {[%emt 0:00:33]} Nb8 $2 {[%emt 0:00:30]} (37... Nxc5 $19 38. bxc5 f4) 38. c4 {[%emt 0:01:13] [#]} bxc4 $1 {[%emt 0:00:34]} 39. Nxc4 {[%emt 0:00:12]} Nxd5 {[%emt 0:00:17]} 40. Ne5+ {[%emt 0:01:06]} Kf6 {[%emt 0:00:44]} 41. Ned3 {[%emt 0:00:02] [#]} Ke7 $1 {[%emt 0:01:36]} 42. Nb3 {[%emt 0:00:35]} (42. Kf2 $17) 42... Kd6 {[%emt 0:00:52]} 43. Nbc5 {[%emt 0:00:18] [#]} Nf6 $2 {[%emt 0:04:22]} (43... Nxb4 $1 $19 {[%mdl 512] is more deadly.} 44. Nb7+ (44. Nxb4 Kxc5) 44... Kc6 45. Nxb4+ Kxb7) 44. Kf1 {[%emt 0:00:35]} Kd5 {[%emt 0:00:54]} 45. Ke2 {[%emt 0:00:07]} Ne4 {[%emt 0:01:01]} 46. Ke3 {[%emt 0:01:04]} (46. Nxe4 $142 Kxe4 47. Nc5+ Kd5 48. Ke3) 46... Nd6 $17 {[%emt 0:01:48]} 47. Nb3 {[%emt 0:00:12]} Kc4 {[%emt 0:00:52]} 48. Nbc5 {[%emt 0:00:01]} Kc3 {[%emt 0:01:24]} 49. Ne6 {[%emt 0:00:06]} g4 {[%emt 0:02:31]} 50. hxg4 {[%emt 0:00:07]} fxg4 {[%emt 0:00:50]} 51. Nxc7 {[%emt 0:00:05]} Nf5+ {[%emt 0:04:50]} 52. Kf4 {[%emt 0:00:10]} Kxd3 {[%emt 0:00:52]} 53. Kxg4 {[%emt 0:00:03]} Nd4 {[%emt 0:00:44]} 54. Nxa6 {[%emt 0:00:07]} Nxa6 {[%emt 0:00:42]} 55. b5 {[%emt 0:00:01]} Nxb5 {[%emt 0:00:17]} 56. Kf5 {[%emt 0:00:01]} Kc4 {[%emt 0:01:14]} 57. Ke4 {[%emt 0:01:43]} 1/2-1/2

[Event "Gibraltar Amateurs B 2019"]
[Site "Caleta"]
[Date "2019.01.27"]
[Round "2"]
[White "Hermes, Geoff R"]
[Black "Escanciano Reyero, Daniel"]
[Result "1/2-1/2"]
[ECO "B07"]
[WhiteElo "1860"]
[BlackElo "1732"]
[Annotator "NA"]
[PlyCount "110"]
[EventDate "2019.01.18"]
[EventType "swiss"]
[EventCountry "GGB"]
[SourceTitle "playchess.com"]
[Source "ChessBase"]
[SourceQuality "1"]
[TimeControl "6600+10"]

1. d4 {[%emt 0:00:00]} Nf6 {[%emt 0:00:00]} 2. Bf4 {[%emt 0:00:03]} g6 {[%emt 0:00:34]} 3. Nc3 {[%emt 0:00:38]} d6 {[%emt 0:00:23]} 4. e4 {[%emt 0:00:14]} Bg7 {[%emt 0:00:56]} 5. Qd2 {[%emt 0:00:57]} h6 {[%emt 0:02:56] LiveBook: 12 Games B07: Pirc Defence: Miscellaneous Systems} (5... c6 6. Nf3 b5 7. a3 Nbd7 8. Bh6 Bxh6 9. Qxh6 Qa5 10. b4 Qc7 11. Bd3 e5 12. h3 a5 13. O-O Bb7 14. Rfe1 Qb6 15. dxe5 dxe5 {0-1 (64) Jumabayev,R (2612)-Amin,B (2689) Riadh 2017}) 6. h4 {[%emt 0:01:16]} Nbd7 {[%emt 0:08:46]} 7. O-O-O {[%emt 0:02:48]} a6 $146 {[%emt 0:03:02]} ({Predecessor:} 7... c6 8. e5 dxe5 9. dxe5 Ng4 10. e6 fxe6 11. Bc4 {1-0 (24) Ilic,I (2115)-Stawski,N (2045) Canberra 1999}) 8. Nf3 {[%emt 0:04:04]} Nb6 {[%emt 0:14:11]} 9. Bd3 {[%emt 0:19:26]} Nh5 {[%emt 0:03:05]} 10. Bh2 {[%emt 0:05:39]} Bg4 {[%emt 0:00:27]} 11. e5 {[%emt 0:01:35]} d5 {[%emt 0:08:32]} 12. e6 {[%emt 0:03:29]} Bxe6 {[%emt 0:04:38]} 13. Ne5 {[%emt 0:01:50]} Bf5 {[%emt 0:08:37]} 14. g4 {[%emt 0:02:15]} Bxd3 {[%emt 0:02:20]} 15. Qxd3 {[%emt 0:16:56]} Nf6 {[%emt 0:01:20]} 16. Qf3 {[%emt 0:02:59]} g5 {[%emt 0:08:03]} 17. hxg5 {[%emt 0:02:25]} hxg5 {[%emt 0:00:06]} 18. Bg3 {[%emt 0:00:14]} Rxh1 {[%emt 0:15:16]} 19. Rxh1 {[%emt 0:00:42]} e6 {[%emt 0:00:04]} 20. Rh7 {[%emt 0:00:45]} Kf8 {[%emt 0:02:20]} 21. Rh2 {[%emt 0:13:42]} Qe7 {[%emt 0:00:21]} 22. Qe3 {[%emt 0:02:02]} Nfd7 {[%emt 0:05:10]} 23. Nf3 {[%emt 0:07:53]} Nc4 {[%emt 0:03:42]} 24. Qxg5 {[%emt 0:03:55]} Qxg5+ {[%emt 0:04:39]} 25. Nxg5 {[%emt 0:00:06]} Nd6 {[%emt 0:03:54]} 26. Nf3 {[%emt 0:06:57]} Nf6 {[%emt 0:00:41]} 27. g5 {[%emt 0:00:36]} Nfe4 {[%emt 0:00:16]} 28. Nxe4 {[%emt 0:00:50]} dxe4 {[%emt 0:00:31]} 29. Ne5 {[%emt 0:01:34]} Ke7 {[%emt 0:00:50]} 30. Rh7 {[%emt 0:00:33]} Rg8 {[%emt 0:01:29]} 31. Ng4 {[%emt 0:02:45]} Bxd4 {[%emt 0:00:52]} 32. Bxd6+ {[%emt 0:00:40]} cxd6 {[%emt 0:00:09]} ({Don't play} 32... Kxd6 33. Nh6 $15 {[%mdl 64] Double Attack}) 33. Nh6 $2 {[%emt 0:00:35]} (33. Rh5) 33... Rg7 {[%emt 0:00:31]} 34. Rxg7 {[%emt 0:01:31]} Bxg7 {[%emt 0:00:05]} 35. Ng4 {[%emt 0:00:08]} d5 {[%emt 0:01:07]} 36. c3 {[%emt 0:00:04]} b5 {[%emt 0:00:30]} 37. Kd2 {[%emt 0:00:02]} Kd6 {[%emt 0:00:15]} 38. Ke3 {[%emt 0:00:26]} a5 {[%emt 0:00:28]} 39. Nh6 {[%emt 0:00:14]} Ke7 {[%emt 0:00:29]} 40. Ng4 {[%emt 0:00:04]} b4 {[%emt 0:00:25]} 41. cxb4 {[%emt 0:00:10]} axb4 {[%emt 0:00:06]} 42. a3 {[%emt 0:00:10]} Bxb2 {[%emt 0:00:15]} 43. axb4 {[%emt 0:00:03]} Bc1+ {[%emt 0:00:22]} 44. Kd4 {[%emt 0:00:08]} Bxg5 {[%emt 0:00:11]} 45. Kc5 {[%emt 0:00:07]} f5 {[%emt 0:00:13]} 46. Ne5 {[%emt 0:00:36]} e3 {[%emt 0:00:33]} 47. fxe3 {[%emt 0:00:12]} Bxe3+ {[%emt 0:00:02]} 48. Kc6 {[%emt 0:00:02]} f4 {[%emt 0:00:33]} 49. b5 {[%emt 0:00:04] [#]} Kf6 $1 {[%emt 0:00:19]} 50. Nf3 {[%emt 0:00:45]} Kf5 {[%emt 0:00:20]} 51. Kd6 {[%emt 0:00:16]} Bb6 {[%emt 0:00:38]} 52. Kc6 $19 {[%emt 0:00:03]} Ba5 {[%emt 0:00:24]} 53. Nd4+ {[%emt 0:00:33]} Ke4 {[%emt 0:00:43]} 54. Nxe6 {[%emt 0:00:05]} f3 {[%emt 0:00:04]} 55. Ng5+ {[%emt 0:01:30]} Ke5 {[%emt 0:00:10]} 1/2-1/2